fUST/lending_fUST_20260116
["ID","MTS","AMOUNT","RATE_DAILY","PERIOD"]
[402140070,1768549840674,-529.88978159,0.00016865,2]
[402140071,1768549840686,-529.88978159,0.00016865,2]
[402140072,1768549840696,-500.0,0.00016865,2]
[402140073,1768549840707,-529.88978159,0.00016865,2]
[402140074,1768549840718,-500.0,0.00016865,2]
[402140075,1768549840729,-529.88978159,0.00016865,2]
[402140076,1768549840739,-529.88978159,0.00016865,2]
[402140077,1768549840751,-500.0,0.00016865,2]
[402140078,1768549840762,-529.88978159,0.00016865,2]
[402140079,1768549840772,-500.0,0.00016865,2]
[402140080,1768549840782,-529.88978159,0.00016865,2]
[402140081,1768549840794,-500.0,0.00016865,2]
[402140082,1768549840805,-529.88978159,0.00016865,2]
[402140083,1768549840815,-529.88978159,0.00016865,2]
[402140084,1768549840824,-529.88978159,0.00016865,2]
[402140085,1768549840835,-529.88978159,0.00016865,2]
[402140086,1768549840846,-529.88978159,0.00016865,2]
[402140087,1768549840856,-500.0,0.00016865,2]
[402140088,1768549840866,-529.88978158,0.00016865,2]
[402140089,1768549841205,-500.0,0.00016865,2]
[402140090,1768549841221,-500.0,0.00016865,2]
[402140091,1768549841231,-500.0,0.00016865,2]
[402140092,1768549841241,-529.88978158,0.00016865,2]
[402140093,1768549841252,-500.0,0.00016865,2]
[402140094,1768549841262,-529.88978158,0.00016865,2]
[402140095,1768549841272,-529.88978158,0.00016865,2]
[402140096,1768549841281,-500.0,0.00016865,2]
[402140097,1768549841291,-529.88978158,0.00016865,2]
[402140098,1768549841301,-600.0,0.00016865,2]
[402140099,1768549841311,-529.88978158,0.00016865,2]
[402140100,1768549841321,-500.0,0.00016865,2]
[402140101,1768549841332,-529.88978158,0.00016865,2]
[402140102,1768549841342,-500.0,0.00016865,2]
[402140103,1768549841352,-500.0,0.00016865,2]
[402140104,1768549841362,-529.88978158,0.00016865,2]
[402140105,1768549841373,-529.88978158,0.00016865,2]
[402140106,1768549841382,-500.0,0.00016865,2]
[402140107,1768549841391,-529.88978158,0.00016865,2]
[402140108,1768549841401,-500.0,0.00016865,2]
[402140109,1768549841411,-529.88978158,0.00016865,2]
[402140110,1768549841420,-500.0,0.00016865,2]
[402140111,1768549841429,-529.88978158,0.00016865,2]
[402140112,1768549841439,-500.0,0.00016865,2]
[402140113,1768549841449,-529.88978158,0.00016865,2]
[402140114,1768549841458,-500.0,0.00016865,2]
[402140115,1768549841467,-529.88978158,0.00016865,2]
[402140116,1768549841477,-500.0,0.00016865,2]
[402140117,1768549841486,-529.88978158,0.00016865,2]
[402140118,1768549841495,-500.0,0.00016865,2]
[402140119,1768549841505,-529.88978158,0.00016865,2]
[402140120,1768549841514,-529.88978158,0.00016865,2]
[402140121,1768549841523,-529.88978158,0.00016865,2]
[402140122,1768549841532,-500.0,0.00016865,2]
[402140123,1768549841542,-500.0,0.00016868,2]
[402140124,1768549841552,-15351.9075708,0.00016869,2]
[402140125,1768549841562,-33018.6137471,0.00016869,2]
[402140126,1768549841572,-656.567061,0.00016869,2]
[402140127,1768549841582,-656.567061,0.00016869,2]
[402140128,1768549841593,-656.567061,0.00016869,2]
[402140129,1768549841605,-656.567061,0.00016869,2]
[402140130,1768549841615,-291.0,0.00017,2]
[402140131,1768549841625,-171.73,0.00017139,2]
[402140132,1768549841636,-500.0,0.00017142,2]
[402140133,1768549841647,-171.75936964,0.00017413,2]
[402140134,1768549841657,-500.0,0.00017416,2]
[402140135,1768549841667,-1057.58946154,0.00017556,2]
[402140136,1768549841679,-580.73384708,0.00017608,2]
[402140137,1768549841689,-500.0,0.0001769,2]
[402140138,1768549841699,-177.0,0.00017754,2]
[402140139,1768549841709,-3000.0,0.00017758,7]
[402140140,1768549841718,-250.0,0.00017806,2]
[402140141,1768549841727,-255.4372916,0.00017806,2]
[402140142,1768549841737,-30000.0,0.00017806,2]
[402140143,1768549841747,-250.0,0.00017806,2]
[402140144,1768549841756,-250.0,0.00017806,2]
[402140145,1768549841765,-311.85701,0.00017806,2]
[402140146,1768549841775,-151.0,0.00017806,2]
[402140147,1768549841784,-262.03461604,0.00017806,2]
[402140148,1768549841792,-151.0,0.00017806,2]
[402140149,1768549841802,-250.0,0.00017806,2]
[402140150,1768549841812,-151.0,0.00017806,2]
[402140151,1768549841822,-151.0,0.00017806,2]
[402140152,1768549841833,-250.0,0.00017806,2]
[402140153,1768549841842,-151.0,0.00017806,2]
[402140154,1768549841851,-151.0,0.00017806,2]
[402140155,1768549841860,-250.0,0.00017806,2]
[402140156,1768549841870,-151.0,0.00017806,2]
[402140157,1768549841879,-151.0,0.00017806,2]
[402140158,1768549841889,-151.0,0.00017806,2]
[402140159,1768549841899,-320.31482928,0.00017806,2]
[402140160,1768549841910,-151.0,0.00017806,2]
[402140161,1768549841921,-151.0,0.00017806,2]
[402140162,1768549841932,-151.0,0.00017806,2]
[402140163,1768549841942,-151.0,0.00017806,2]
[402140164,1768549841951,-151.0,0.00017806,2]
[402140165,1768549841963,-151.0,0.00017806,2]
[402140166,1768549841973,-1000.0,0.00017806,2]
[402140167,1768549841984,-151.0,0.00017806,2]
[402140168,1768549841994,-151.0,0.00017806,2]
[402140169,1768549842005,-151.0,0.00017806,2]
[402140170,1768549842015,-1000.0,0.00017806,2]
[402140171,1768549842025,-151.0,0.00017806,2]
[402140172,1768549842035,-151.0,0.00017806,2]
[402140173,1768549842045,-812.79487465,0.00017806,2]
[402140174,1768549842055,-151.0,0.00017806,2]
[402140175,1768549842064,-1000.0,0.00017806,2]
[402140176,1768549842074,-151.0,0.00017806,2]
[402140177,1768549842084,-151.0,0.00017806,2]
[402140178,1768549842093,-151.18757029,0.00017806,2]
[402140179,1768549842103,-1000.0,0.00017806,2]
[402140180,1768549842112,-151.0,0.00017806,2]
[402140181,1768549842122,-151.0,0.00017806,2]
[402140182,1768549842131,-1000.0,0.00017806,2]
[402140183,1768549842140,-151.0,0.00017806,2]
[402140184,1768549842150,-162.380719,0.00017806,2]
[402140185,1768549842159,-1000.0,0.00017806,2]
[402140186,1768549842169,-151.0,0.00017806,2]
[402140187,1768549842178,-151.0,0.00017806,2]
[402140188,1768549842187,-168.3888056,0.00017806,2]
[402140189,1768549842196,-151.0,0.00017806,2]
[402140190,1768549842205,-151.0,0.00017806,2]
[402140191,1768549842214,-1000.0,0.00017806,2]
[402140192,1768549842224,-174.61919141,0.00017806,2]
[402140193,1768549842233,-151.0,0.00017806,2]
[402140194,1768549842242,-151.0,0.00017806,2]
[402140195,1768549842252,-1000.0,0.00017806,2]
[402140196,1768549842261,-181.08010149,0.00017806,2]
[402140197,1768549842271,-151.0,0.00017806,2]
[402140198,1768549842280,-151.0,0.00017806,2]
[402140199,1768549842289,-1000.0,0.00017806,2]
[402140200,1768549842298,-187.78006525,0.00017806,2]
[402140201,1768549842308,-151.0,0.00017806,2]
[402140202,1768549842318,-1000.0,0.00017806,2]
[402140203,1768549842327,-151.0,0.00017806,2]
[402140204,1768549842337,-194.72792766,0.00017806,2]
[402140205,1768549842346,-1000.0,0.00017806,2]
[402140206,1768549842355,-151.0,0.00017806,2]
[402140207,1768549842366,-151.0,0.00017806,2]
[402140208,1768549842376,-201.93286099,0.00017806,2]
[402140209,1768549842386,-2150.738,0.00017806,2]
[402140210,1768549842397,-1000.0,0.00017806,2]
[402140211,1768549842408,-151.0,0.00017806,2]
[402140213,1768549842417,-209.40437684,0.00017806,2]
[402140215,1768549842429,-1000.0,0.00017806,2]
[402140216,1768549842440,-151.0,0.00017806,2]
[402140217,1768549842449,-445.202766,0.00017806,2]
[402140218,1768549842459,-217.15233878,0.00017806,2]
[402140219,1768549842468,-1000.0,0.00017806,2]
[402140220,1768549842477,-154.46674659,0.00017806,2]
[402140223,1768549842487,-225.18697532,0.00017806,2]
[402140224,1768549842498,-789.01029926,0.00017806,2]
[402140225,1768549842508,-233.51889341,0.00017806,2]
[402140226,1768549842518,-242.15909246,0.00017806,2]
[402140227,1768549842528,-169.08860316,0.00017806,2]
[402140228,1768549842538,-251.11897888,0.00017806,2]
[402140229,1768549842547,-260.4103811,0.00017806,2]
[402140230,1768549842557,-1957.856,0.00017806,2]
[402140231,1768549842567,-270.0455652,0.00017806,2]
[402140232,1768549842577,-280.03725112,0.00017806,2]
[402140233,1768549842587,-290.39862941,0.00017806,2]
[402140234,1768549842596,-301.1433787,0.00017806,2]
[402140235,1768549842608,-656.567061,0.00017806,2]
[402140236,1768549842618,-656.567061,0.00017806,2]
[402140237,1768549842628,-656.567061,0.00017806,2]
[402140238,1768549842637,-656.567061,0.00017806,2]
[402140239,1768549842647,-2030.296672,0.00017861,2]
[402140240,1768549842656,-2105.41764886,0.00017916,2]
[402140241,1768549842666,-151.60947319,0.00017938,2]
[402140242,1768549842676,-151.0,0.00017938,2]
[402140243,1768549842686,-151.0,0.00017938,2]
[402140244,1768549842696,-151.0,0.00017938,2]
[402140245,1768549842706,-151.0,0.00017938,2]
[402140246,1768549842717,-151.0,0.00017938,2]
[402140247,1768549842726,-151.0,0.00017938,2]
[402140248,1768549842735,-156.454734,0.00017938,2]
[402140249,1768549842745,-2183.31810187,0.00017971,2]
[402140250,1768549842755,-656.567061,0.0001799,2]
[402140251,1768549842766,-656.567061,0.0001799,2]
[402140252,1768549842776,-656.567061,0.0001799,2]
[402140253,1768549842785,-656.567058,0.0001799,2]
[402140254,1768549842795,-2264.10087164,0.00018026,2]
[402140255,1768549842805,-6366.16908257,0.00018071,2]
[402140256,1768549842814,-2347.87260389,0.00018081,2]
[402140257,1768549842823,-2434.74389024,0.00018136,2]
[402140258,1768549842833,-2524.82941417,0.00018191,2]
[402140259,1768549842842,-2618.2481025,0.00018246,2]
[402140260,1768549842851,-500.0,0.00018262,2]
[402140261,1768549842861,-500.0,0.00018262,2]
[402140262,1768549842871,-500.0,0.00018262,2]
[402140263,1768549842880,-500.0,0.00018262,2]
[402140264,1768549842890,-500.0,0.00018262,2]
[402140265,1768549842899,-500.0,0.00018262,2]
[402140266,1768549842908,-500.0,0.00018262,2]
[402140267,1768549842918,-500.0,0.00018262,2]
[402140268,1768549842927,-500.0,0.00018262,2]
[402140269,1768549842937,-500.0,0.00018262,2]
[402140270,1768549842947,-500.0,0.00018262,2]
[402140271,1768549842957,-500.0,0.00018262,2]
[402140272,1768549842967,-500.0,0.00018262,2]
[402140273,1768549842977,-500.0,0.00018262,2]
[402140274,1768549842987,-246.880399,0.00018262,2]
[402140275,1768549842997,-500.0,0.00018262,2]
[402140276,1768549843006,-500.0,0.00018262,2]
[402140278,1768549843016,-2715.12328229,0.00018301,2]
[402140279,1768549843026,-500.0,0.00018326,2]
[402140280,1768549843035,-500.0,0.00018326,2]
[402140281,1768549843045,-500.0,0.00018326,2]
[402140282,1768549843055,-500.0,0.00018326,2]
[402140283,1768549843065,-500.0,0.00018326,2]
[402140284,1768549843074,-500.0,0.00018326,2]
[402140285,1768549843084,-500.0,0.00018326,2]
[402140286,1768549843094,-500.0,0.00018326,2]
[402140287,1768549843104,-500.0,0.00018326,2]
[402140288,1768549843114,-500.0,0.00018326,2]
[402140290,1768549843124,-500.0,0.00018326,2]
[402140291,1768549843134,-500.0,0.00018326,2]
[402140292,1768549843144,-500.0,0.00018326,2]
[402140294,1768549843153,-500.0,0.00018326,2]
[402140295,1768549843163,-500.0,0.00018326,2]
[402140296,1768549843172,-500.0,0.00018326,2]
[402140297,1768549843182,-601.66660127,0.00018326,2]
[402140298,1768549843191,-31110.0,0.00018354,2]
[402140299,1768549843200,-323.39571937,0.00018354,2]
[402140300,1768549843210,-152.4068635,0.00018354,2]
[402140301,1768549843219,-2230.315306,0.00018354,2]
[402140302,1768549843229,-461.67526834,0.00018354,2]
[402140303,1768549843239,-2815.58284374,0.00018356,2]
[402140304,1768549843248,-2060.74311098,0.00018366,2]
[402140305,1768549843258,-151.0,0.00018381,2]
[402140306,1768549843267,-251.8063765,0.00018399,2]
[402140307,1768549843276,-153.27960824,0.00018399,2]
[402140308,1768549843286,-203.89728438,0.00018399,2]
[402140309,1768549843295,-500.0,0.00018399,2]
[402140310,1768549843304,-500.0,0.00018399,2]
[402140311,1768549843314,-500.0,0.00018399,2]
[402140312,1768549843323,-273.07322793,0.00018399,2]
[402140313,1768549843333,-500.0,0.00018399,2]
[402140314,1768549843342,-500.0,0.00018399,2]
[402140316,1768549843352,-500.0,0.00018399,2]
[402140317,1768549843362,-500.0,0.00018399,2]
[402140319,1768549843371,-500.0,0.00018399,2]
[402140321,1768549843380,-500.0,0.00018399,2]
[402140323,1768549843389,-500.0,0.00018399,2]
[402140324,1768549843398,-500.0,0.00018399,2]
[402140326,1768549843407,-500.0,0.00018399,2]
[402140328,1768549843417,-500.0,0.00018399,2]
[402140329,1768549843426,-500.0,0.00018399,2]
[402140330,1768549843435,-500.0,0.00018399,2]
[402140331,1768549843444,-500.0,0.00018399,2]
[402140332,1768549843453,-701.0,0.00018406,2]
[402140333,1768549843463,-2919.75940895,0.00018411,2]
[402140334,1768549843472,-482.74,0.00018461,2]
[402140335,1768549843482,-3027.79050709,0.00018466,2]
[402140336,1768549843492,-151.0,0.00018476,2]
[402140337,1768549843501,-719.0,0.00018488,2]
[402140338,1768549843510,-3139.81875585,0.00018521,2]
[402140339,1768549843519,-208.28,0.00018523,2]
[402140340,1768549843528,-208.28,0.00018523,2]
[402140341,1768549843538,-208.28,0.00018523,2]
[402140342,1768549843546,-208.28,0.00018523,2]
[402140343,1768549843556,-208.28,0.00018523,2]
[402140344,1768549843565,-208.28,0.00018523,2]
[402140345,1768549843574,-208.28,0.00018523,2]
[402140346,1768549843644,-151.18,0.00018523,2]
[402140347,1768549843654,-3196.03929658,0.00018524,2]
[402140348,1768549843664,-500.0,0.00018535,2]
[402140349,1768549843675,-500.0,0.00018535,2]
[402140350,1768549843686,-248.62480413,0.00018535,2]
[402140351,1768549843697,-500.0,0.00018535,2]
[402140352,1768549843707,-326.10362207,0.00018535,2]
[402140353,1768549843717,-190.65694171,0.00018535,2]
[402140354,1768549843726,-500.0,0.00018536,2]
[402140355,1768549843735,-500.0,0.00018536,2]
[402140356,1768549843745,-500.0,0.00018536,2]
[402140357,1768549843755,-154.62090033,0.00018536,2]
[402140358,1768549843765,-173.74964054,0.00018536,2]
[402140359,1768549843774,-500.0,0.00018536,2]
[402140360,1768549843783,-500.0,0.00018536,2]
[402140361,1768549843792,-500.0,0.00018536,2]
[402140362,1768549843802,-500.0,0.00018536,2]
[402140363,1768549843811,-500.0,0.00018536,2]
[402140364,1768549843820,-500.0,0.00018536,2]
[402140365,1768549843830,-500.0,0.00018536,2]
[402140366,1768549843840,-261.62124068,0.00018536,2]
[402140367,1768549843849,-500.0,0.00018536,2]
[402140368,1768549843859,-500.0,0.00018536,2]
[402140369,1768549843868,-500.0,0.00018536,2]
[402140370,1768549843878,-500.0,0.00018536,2]
[402140371,1768549843887,-193.882904,0.00018536,2]
[402140372,1768549843897,-500.0,0.00018536,2]
[402140373,1768549843907,-800.0,0.00018543,2]
[402140374,1768549843916,-800.0,0.00018548,2]
[402140375,1768549843925,-701.0,0.00018561,2]
[402140376,1768549843935,-800.0,0.00018571,2]
[402140377,1768549843944,-3255.99204981,0.00018576,2]
[402140378,1768549843953,-7017.73063281,0.00018584,2]
[402140379,1768549843963,-800.0,0.00018595,2]
[402140380,1768549843972,-800.0,0.00018617,2]
[402140381,1768549843981,-177.915,0.00018623,2]
[402140382,1768549843990,-178.12019641,0.00018623,2]
[402140383,1768549844000,-2000.0,0.0001863,2]
[402140384,1768549844009,-2206.79594016,0.00018631,2]
[402140385,1768549844019,-558.13326427,0.00018646,2]
[402140386,1768549844028,-800.0,0.00018647,2]
[402140387,1768549844037,-5933.07608235,0.00018647,3]
[402140388,1768549844046,-234.20694637,0.00018673,2]
[402140389,1768549844056,-455.2748173,0.00018673,2]
[402140390,1768549844065,-500.0,0.00018673,2]
[402140391,1768549844075,-508.93752748,0.00018673,2]
[402140392,1768549844084,-500.0,0.00018673,2]
[402140393,1768549844094,-500.0,0.00018673,2]
[402140394,1768549844103,-500.0,0.00018673,2]
[402140395,1768549844113,-500.0,0.00018673,2]
[402140396,1768549844122,-500.0,0.00018673,2]
[402140397,1768549844132,-500.0,0.00018673,2]
[402140398,1768549844142,-500.0,0.00018673,2]
[402140399,1768549844151,-500.0,0.00018673,2]
[402140400,1768549844160,-500.0,0.00018673,2]
[402140401,1768549844170,-500.0,0.00018673,2]
[402140402,1768549844179,-618.64999889,0.00018673,2]
[402140403,1768549844188,-1000.0,0.00018673,2]
[402140404,1768549844198,-7145.34542253,0.00018683,2]
[402140405,1768549844208,-221.0,0.00018685,2]
[402140406,1768549844216,-800.0,0.00018686,2]
[402140407,1768549844226,-151.0,0.000187,2]
[402140408,1768549844234,-221.0,0.00018707,2]
[402140409,1768549844242,-728.0,0.0001872,2]
[402140410,1768549844250,-728.0,0.00018731,2]
[402140411,1768549844259,-2147.0,0.00018756,2]
[402140412,1768549844269,-629.0,0.00018756,2]
[402140413,1768549844277,-1367.0,0.00018756,2]
[402140414,1768549844286,-715.0,0.00018756,2]
[402140415,1768549844295,-198.478,0.00018756,2]
[402140416,1768549844304,-417.0,0.00018756,2]
[402140417,1768549844313,-825.60837125,0.00018764,2]
[402140418,1768549844322,-204.50561505,0.00018776,2]
[402140419,1768549844331,-200.0,0.00018776,2]
[402140420,1768549844340,-212047.61501003,0.00018777,2]
[402140421,1768549844731,-9121.0578579,0.00018777,2]
[402140422,1768549844769,-13071.54424423,0.00018777,2]
[402140423,1768549845054,-130432.11244381,0.00018777,2]
[402140424,1768549845064,-221.0,0.00018783,2]
[402140425,1768549845074,-221.0,0.00018788,2]
[402140426,1768549845084,-151.0,0.000188,2]
[402140427,1768549845094,-728.0,0.00018808,2]
[402140428,1768549845104,-150.74696944,0.0001881,2]
[402140429,1768549845113,-179.83086986,0.0001881,2]
[402140430,1768549845124,-500.0,0.0001881,2]
[402140431,1768549845134,-153.07544209,0.0001881,2]
[402140432,1768549845143,-500.0,0.0001881,2]
[402140433,1768549845153,-612.39275147,0.0001881,2]
[402140434,1768549845162,-500.0,0.0001881,2]
[402140435,1768549845172,-500.0,0.0001881,2]
[402140436,1768549845181,-500.0,0.0001881,2]
[402140437,1768549845190,-500.0,0.0001881,2]
[402140438,1768549845199,-629.19406929,0.0001881,2]
[402140439,1768549845208,-500.0,0.0001881,2]
[402140440,1768549845218,-500.0,0.0001881,2]
[402140441,1768549845227,-504.48406529,0.00018824,5]
[402140442,1768549845236,-1740.0,0.00018833,2]
[402140443,1768549845245,-1740.0,0.00018852,2]
[402140444,1768549845254,-3000.0,0.00018854,7]
[402140445,1768549845263,-151.0,0.000189,2]
[402140446,1768549845272,-151.0,0.000189,2]
[402140447,1768549845281,-151.0,0.000189,2]
[402140448,1768549845290,-151.0,0.000189,2]
[402140449,1768549845299,-303.10001603,0.000189,2]
[402140450,1768549845308,-303.10001603,0.000189,2]
[402140451,1768549845318,-32261.07,0.00018902,2]
[402140452,1768549845327,-2312.83697232,0.00018902,2]
[402140453,1768549845336,-478.75725327,0.00018902,2]
[402140454,1768549845345,-221.0,0.00018946,2]
[402140455,1768549845354,-500.0,0.00018947,2]
[402140456,1768549845363,-500.0,0.00018947,2]
[402140457,1768549845373,-500.0,0.00018947,2]
[402140458,1768549845381,-565.80108301,0.00018947,2]
[402140459,1768549845390,-500.0,0.00018947,2]
[402140460,1768549845399,-500.0,0.00018947,2]
[402140461,1768549845408,-500.0,0.00018947,2]
[402140462,1768549845417,-221.0,0.00018958,2]
[402140463,1768549845426,-2105.0,0.00018974,2]
[402140464,1768549845435,-19593.0,0.00019,2]
[402140465,1768549845444,-151.0,0.00019029,2]
[402140466,1768549845455,-500.0,0.00019084,2]
[402140467,1768549845463,-288.0,0.00019084,2]
[402140468,1768549845472,-300.0,0.00019084,2]
[402140469,1768549845481,-500.0,0.00019084,2]
[402140470,1768549845490,-303.10001603,0.00019089,2]
[402140471,1768549845499,-303.10001603,0.00019089,2]
[402140472,1768549845508,-151.0,0.000191,2]
[402140473,1768549845517,-779.0,0.000191,2]
[402140474,1768549845526,-5933.05,0.0001915,3]
[402140475,1768549845535,-728.0,0.00019156,2]
[402140476,1768549845544,-978.05628,0.00019156,7]
[402140478,1768549845553,-2000.0,0.00019178,2]
[402140480,1768549845562,-2536.62,0.00019178,2]
[402140482,1768549845571,-2536.62,0.00019178,2]
[402140483,1768549845580,-200.0,0.00019178,2]
[402140484,1768549845589,-485.01,0.00019178,2]
[402140485,1768549845599,-733.77,0.00019178,2]
[402140486,1768549845611,-733.77,0.00019178,2]
[402140487,1768549845620,-733.77,0.00019178,2]
[402140488,1768549845629,-733.77,0.00019178,2]
[402140489,1768549845638,-733.77,0.00019178,2]
[402140490,1768549845649,-733.77,0.00019178,2]
[402140491,1768549845658,-733.77,0.00019178,2]
[402140492,1768549845667,-733.77,0.00019178,2]
[402140493,1768549845676,-733.77,0.00019178,2]
[402140494,1768549845686,-733.77,0.00019178,2]
[402140495,1768549845695,-733.77,0.00019178,2]
[402140496,1768549845704,-733.77,0.00019178,2]
[402140497,1768549845713,-733.77,0.00019178,2]
[402140498,1768549845722,-733.77,0.00019178,2]
[402140499,1768549845731,-733.77,0.00019178,2]
[402140500,1768549845739,-733.77,0.00019178,2]
[402140501,1768549845749,-733.77,0.00019178,2]
[402140502,1768549845758,-733.77,0.00019178,2]
[402140503,1768549845768,-733.77,0.00019178,2]
[402140505,1768549845777,-733.77,0.00019178,2]
[402140506,1768549845786,-733.77,0.00019178,2]
[402140507,1768549845795,-175.42398088,0.00019178,2]
[402140508,1768549845804,-1616.43687,0.00019178,2]
[402140509,1768549845813,-1616.43687,0.00019178,2]
[402140510,1768549845822,-1616.43687,0.00019178,2]
[402140511,1768549845832,-1616.43687,0.00019178,2]
[402140512,1768549845840,-1616.43687,0.00019178,2]
[402140513,1768549845849,-1616.43687,0.00019178,2]
[402140514,1768549845858,-1616.43687,0.00019178,2]
[402140515,1768549845867,-1616.43687,0.00019178,2]
[402140516,1768549845876,-1616.43687,0.00019178,2]
[402140517,1768549845885,-1616.43687,0.00019178,2]
[402140518,1768549845894,-1616.43687,0.00019178,2]
[402140519,1768549845903,-1616.43687,0.00019178,2]
[402140521,1768549845912,-1616.43687,0.00019178,2]
[402140522,1768549845921,-1616.43687,0.00019178,2]
[402140524,1768549845930,-1616.43687,0.00019178,2]
[402140525,1768549845939,-1616.43687,0.00019178,2]
[402140526,1768549845948,-1616.43687,0.00019178,2]
[402140527,1768549845957,-1616.43687,0.00019178,2]
[402140528,1768549845966,-1616.43687,0.00019178,2]
[402140529,1768549845975,-1616.436876,0.00019178,2]
[402140530,1768549845984,-151.0,0.00019178,2]
[402140531,1768549845993,-243.48264022,0.00019178,2]
[402140532,1768549846003,-1057.58946154,0.00019179,2]
[402140533,1768549846013,-176.42,0.000192,2]
[402140534,1768549846022,-208.52,0.000192,2]
[402140535,1768549846032,-20000.0,0.000192,2]
[402140536,1768549846041,-167.99,0.000192,2]
[402140537,1768549846050,-151.0,0.000192,2]
[402140538,1768549846059,-732.0,0.00019215,2]
[402140539,1768549846068,-500.0,0.00019221,2]
[402140540,1768549846077,-1646.20464,0.00019221,7]
[402140541,1768549846086,-250.0,0.00019221,2]
[402140542,1768549846096,-2266.020481,0.00019278,7]
[402140543,1768549846105,-303.10001603,0.00019278,2]
[402140544,1768549846114,-670.522922,0.00019278,7]
[402140545,1768549846123,-303.10001603,0.00019278,2]
[402140546,1768549846133,-500.0,0.00019358,2]
[402140547,1768549846142,-2952.193659,0.00019358,7]
[402140548,1768549846151,-969.471273,0.00019358,7]
[402140549,1768549846160,-1753.014494,0.00019358,7]
[402140550,1768549846170,-728.0,0.00019358,2]
[402140551,1768549846179,-150.199,0.00019384,2]
[402140552,1768549846188,-222.241378,0.00019384,7]
[402140553,1768549846197,-151.0,0.000194,2]
[402140554,1768549846206,-23167.84703477,0.0001945,2]
[402140555,1768549846215,-2398.4119403,0.0001945,2]
[402140556,1768549846223,-496.47127164,0.0001945,2]
[402140557,1768549846232,-303.10001603,0.00019467,2]
[402140558,1768549846241,-303.10001619,0.00019467,2]
[402140559,1768549846250,-500.0,0.00019495,2]
[402140560,1768549846259,-479.218685,0.00019495,7]
[402140561,1768549846269,-20000.0,0.000195,2]
[402140562,1768549846279,-2292.372136,0.000195,7]
[402140563,1768549846289,-800.0,0.00019508,2]
[402140564,1768549846298,-558.13326427,0.00019529,2]
[402140565,1768549846307,-800.0,0.00019546,2]
[402140566,1768549846315,-800.0,0.0001955,2]
[402140567,1768549846324,-6959.82178558,0.00019551,2]
[402140568,1768549846333,-2465.931695,0.00019551,7]
[402140569,1768549846342,-2231.166248,0.00019572,7]
[402140570,1768549846352,-3854.428556,0.00019572,7]
[402140571,1768549846361,-800.0,0.00019574,2]
[402140572,1768549846370,-800.0,0.00019584,2]
[402140573,1768549846380,-5393.488197,0.00019589,7]
[402140574,1768549846389,-2132.536662,0.00019589,7]
[402140575,1768549846398,-557.8173,0.00019589,7]
[402140576,1768549846407,-440.31817221,0.00019591,2]
[402140577,1768549846417,-800.0,0.00019593,2]
[402140578,1768549846426,-151.0,0.000196,2]
[402140579,1768549846435,-151.0,0.000196,2]
[402140580,1768549846444,-500.0,0.00019632,2]
[402140581,1768549846454,-303.10001556,0.00019656,2]
[402140582,1768549846463,-3728.04955627,0.00019662,2]
[402140583,1768549846472,-151.0,0.00019676,2]
[402140584,1768549846481,-151.0,0.000197,2]
[402140585,1768549846490,-11866.1,0.000197,3]
[402140586,1768549846499,-188.218461,0.00019724,7]
[402140587,1768549846508,-204.0,0.00019754,2]
[402140588,1768549846517,-728.0,0.00019768,2]